bitfinex/quotes_BTCUSD_20251025
["timestamp","ask_amount","ask_price","bid_price","bid_amount"]
[1761391099734,1e-08,111580.0,111570.0,6.42710202]
[1761391101179,1e-08,111580.0,111570.0,6.49560875]
[1761391107142,1e-08,111580.0,111570.0,6.46026064]
[1761391110947,1e-08,111580.0,111570.0,6.3958949]
[1761391112343,1e-08,111580.0,111570.0,6.37100381]
[1761391116860,1e-08,111580.0,111570.0,7.20104645]
[1761391119528,1e-08,111580.0,111570.0,7.28138858]
[1761391123184,1e-08,111580.0,111570.0,7.20104645]
[1761391123398,1e-08,111580.0,111570.0,7.28154951]
[1761391136133,1e-08,111580.0,111570.0,6.83278755]
[1761391136340,1e-08,111580.0,111570.0,7.03217342]
[1761391140374,1e-08,111580.0,111570.0,7.02217343]
[1761391140554,1e-08,111580.0,111570.0,7.03217342]
[1761391143198,1e-08,111580.0,111570.0,7.41361539]
[1761391143402,1e-08,111580.0,111570.0,7.43846951]
[1761391143615,1e-08,111580.0,111570.0,7.47106762]
[1761391144776,0.54604625,111640.0,111630.0,0.1791633]
[1761391149540,0.36689662,111640.0,111630.0,0.1791633]
[1761391149832,0.36689662,111640.0,111630.0,0.66834061]
[1761391150000,0.36689662,111640.0,111630.0,0.65042428]
[1761391150537,0.36891826,111640.0,111630.0,0.65042428]
[1761391150745,0.02891826,111640.0,111630.0,0.65042428]
[1761391150963,0.00202164,111640.0,111630.0,0.65042428]
[1761391156603,0.00202164,111640.0,111630.0,0.80738428]
[1761391157036,0.00202164,111640.0,111630.0,0.80838428]
[1761391160209,0.00202164,111640.0,111630.0,0.26998231]
[1761391160414,0.01993326,111640.0,111630.0,0.26998231]
[1761391160894,0.04682704,111640.0,111630.0,0.26998231]
[1761391164160,0.20378704,111640.0,111630.0,0.26998231]
[1761391164416,0.18587542,111640.0,111630.0,0.26998231]
[1761391168688,0.36502267,111640.0,111630.0,0.26998231]
[1761391168904,0.74646464,111640.0,111630.0,0.09081901]
[1761391169120,0.74646464,111640.0,111630.0,0.1801633]
[1761391171534,0.74646464,111640.0,111630.0,0.001]
[1761391172843,0.74646464,111640.0,111630.0,0.1801633]
[1761391173048,0.36502267,111640.0,111630.0,0.1801633]
[1761391202490,0.18587542,111640.0,111630.0,0.1801633]
[1761391202864,0.36502267,111640.0,111630.0,0.1801633]
[1761391203074,0.18583542,111640.0,111630.0,0.1801633]
[1761391203312,0.36498267,111640.0,111630.0,0.1801633]
[1761391215273,0.36498267,111640.0,111630.0,0.001]
[1761391232212,0.36498267,111640.0,111630.0,0.1801633]
[1761391257421,0.36498267,111640.0,111630.0,0.561569]
[1761391262501,0.36498267,111640.0,111630.0,0.1801633]
[1761391262728,0.36498267,111640.0,111630.0,0.561569]
[1761391265456,0.36498267,111640.0,111630.0,0.3824057]
[1761391265684,0.36498267,111640.0,111630.0,0.001]
[1761391266984,0.36498267,111640.0,111630.0,0.1801633]
[1761391271337,0.20806267,111640.0,111630.0,0.561569]
[1761391271550,0.36498267,111640.0,111630.0,0.561569]
[1761391271758,0.36498267,111640.0,111630.0,0.3824057]
[1761391271968,0.36498267,111640.0,111630.0,0.561569]
[1761391286008,0.36498267,111640.0,111630.0,0.3824057]
[1761391286222,0.36498267,111640.0,111630.0,0.561569]
[1761391286634,0.36498267,111640.0,111630.0,0.001]
[1761391286928,0.74638837,111640.0,111630.0,0.001]
[1761391292311,0.74638837,111640.0,111630.0,1.001]
[1761391298822,0.36498267,111640.0,111630.0,1.001]
[1761391310467,0.42230267,111640.0,111630.0,1.001]
[1761391319977,0.36498267,111640.0,111630.0,1.001]
[1761391322511,0.05934164,111640.0,111630.0,1.60905002]
[1761391322742,0.05934164,111640.0,111630.0,1.64164814]
[1761391322950,0.21626164,111640.0,111630.0,1.63594081]
[1761391323152,0.21626164,111640.0,111630.0,1.66814892]
[1761391323353,0.21626164,111640.0,111630.0,1.63594081]
[1761391323555,0.21626164,111640.0,111630.0,1.68594081]
[1761391324866,0.21626164,111640.0,111630.0,1.68494081]
[1761391325055,0.21626164,111640.0,111630.0,1.68594081]
[1761391327069,0.00202164,111640.0,111630.0,1.68594081]
[1761391327294,0.21626164,111640.0,111630.0,1.63594081]
[1761391331878,0.00202164,111640.0,111630.0,1.63594081]
[1761391332084,0.05934164,111640.0,111630.0,1.63594081]
[1761391332309,0.21626164,111640.0,111630.0,1.63594081]
[1761391332685,0.15894164,111640.0,111630.0,1.63594081]
[1761391332890,0.21626164,111640.0,111630.0,1.63594081]
[1761391339288,0.00202164,111640.0,111630.0,1.97500852]
[1761391339655,1e-08,111640.0,111630.0,2.40466887]
[1761391339871,1e-08,111640.0,111630.0,2.42038292]
[1761391340281,1e-08,111640.0,111630.0,2.3945288]
[1761391340503,1e-08,111640.0,111630.0,2.44071107]
[1761391340706,1e-08,111640.0,111630.0,2.44271107]
[1761391341115,1e-08,111640.0,111630.0,2.44571107]
[1761391341446,1e-08,111640.0,111630.0,2.3973989]
[1761391342152,1e-08,111640.0,111630.0,2.44571107]
[1761391343282,1e-08,111640.0,111630.0,2.44371107]
[1761391343560,1e-08,111640.0,111630.0,2.59541107]
[1761391343766,1e-08,111640.0,111630.0,2.59241107]
[1761391344181,1e-08,111640.0,111630.0,2.59741107]
[1761391344396,1e-08,111640.0,111630.0,2.59241107]
[1761391344574,1e-08,111640.0,111630.0,2.59541107]
[1761391351238,1e-08,111640.0,111630.0,2.56320296]
[1761391353839,1e-08,111640.0,111630.0,2.57930702]
[1761391358884,1e-08,111640.0,111630.0,2.66337164]
[1761391364517,1e-08,111640.0,111630.0,2.65337165]
[1761391364723,1e-08,111640.0,111630.0,2.61718937]
[1761391364926,1e-08,111640.0,111630.0,2.55277314]
[1761391365385,1e-08,111640.0,111630.0,2.61718937]
[1761391367214,1e-08,111640.0,111630.0,2.46748937]
[1761391377994,1e-08,111640.0,111630.0,2.03618235]
[1761391378865,1e-08,111640.0,111630.0,2.08448677]
[1761391379072,1e-08,111640.0,111630.0,2.08148677]
[1761391379270,1e-08,111640.0,111630.0,2.08048677]
[1761391379482,1e-08,111640.0,111630.0,2.03218235]
[1761391379904,1e-08,111640.0,111630.0,2.05907253]
[1761391380771,1e-08,111640.0,111630.0,2.06107253]
[1761391386534,1e-08,111640.0,111630.0,2.03418235]
[1761391387617,1e-08,111640.0,111630.0,2.08249276]
[1761391400189,1e-08,111640.0,111630.0,2.03418235]
[1761391407291,1e-08,111640.0,111630.0,2.09859858]
[1761391411363,1e-08,111640.0,111630.0,2.03418235]
[1761391418830,1e-08,111640.0,111630.0,1.61084414]
[1761391425123,1e-08,111640.0,111630.0,1.65919744]
[1761391428391,1e-08,111640.0,111630.0,1.32033561]
[1761391428635,1e-08,111640.0,111630.0,1.65919744]
[1761391432239,1e-08,111640.0,111630.0,1.61084414]
[1761391466289,1e-08,111640.0,111630.0,1.6592147]
[1761391478798,1e-08,111640.0,111630.0,2.08275503]
[1761391488988,1e-08,111640.0,111630.0,2.10964521]
[1761391505589,1e-08,111640.0,111630.0,2.62257088]
[1761391506696,1e-08,111640.0,111630.0,2.62157088]
[1761391506915,1e-08,111640.0,111630.0,2.62357088]
[1761391508212,1e-08,111640.0,111630.0,2.62557088]
[1761391511315,1e-08,111640.0,111630.0,2.56115465]
[1761391511981,1e-08,111640.0,111630.0,2.62557088]
[1761391538851,1e-08,111640.0,111630.0,2.5980141]
[1761391549225,1e-08,111640.0,111630.0,2.63419638]
[1761391551495,1e-08,111640.0,111630.0,2.78389638]
[1761391557608,1e-08,111640.0,111630.0,2.56969638]
[1761391560370,1e-08,111640.0,111630.0,2.23093369]
[1761391568306,1e-08,111640.0,111630.0,1.892171]
[1761391568509,1e-08,111640.0,111630.0,2.23093369]
[1761391569265,1e-08,111640.0,111630.0,2.08123369]
[1761391575642,1e-08,111640.0,111630.0,2.01681746]
[1761391590885,1e-08,111640.0,111630.0,1.30187249]
[1761391591094,1e-08,111640.0,111630.0,1.953745]
[1761391592064,1e-08,111640.0,111630.0,1.947745]
[1761391592570,1e-08,111640.0,111630.0,1.948745]
[1761391593494,1e-08,111640.0,111630.0,1.26998231]
[1761391600723,1e-08,111640.0,111630.0,1.65131784]
[1761391600920,0.17914726,111640.0,111630.0,1.26998231]
[1761391601130,0.19705888,111640.0,111630.0,1.26998231]
[1761391601328,0.22395152,111640.0,111630.0,1.09081901]
[1761391601475,0.2060399,111640.0,111630.0,1.09081901]
[1761391602378,0.2060399,111640.0,111630.0,1.26998231]
[1761391603570,0.2060399,111640.0,111630.0,1.09081901]
[1761391607376,0.2060399,111640.0,111630.0,1.26998231]
[1761391607582,0.02689265,111640.0,111630.0,1.65131784]
[1761391621613,1e-08,111640.0,111630.0,1.65131784]
[1761391626326,1e-08,111640.0,111630.0,2.03265337]
[1761391628352,1e-08,111640.0,111630.0,2.37265337]
[1761391629748,1e-08,111640.0,111630.0,2.37365337]
[1761391629950,1e-08,111640.0,111630.0,2.37265337]
[1761391630341,1e-08,111640.0,111630.0,2.37465337]
[1761391630544,4e-05,111660.0,111650.0,0.17913121]
[1761391630792,4e-05,111660.0,111650.0,0.66819887]
[1761391631042,4e-05,111660.0,111650.0,0.65028575]
[1761391632219,4e-05,111660.0,111650.0,0.73085009]
[1761391632351,4e-05,111660.0,111650.0,0.65028575]
[1761391632970,4e-05,111660.0,111650.0,0.73085009]
[1761391633244,4e-05,111660.0,111650.0,0.73185009]
[1761391633803,4e-05,111660.0,111650.0,0.73085009]
[1761391634248,4e-05,111660.0,111650.0,0.73285009]
[1761391634615,4e-05,111660.0,111650.0,0.65228575]
[1761391634822,4e-05,111660.0,111650.0,0.65328575]
[1761391636197,0.00071359,111660.0,111650.0,0.65328575]
[1761391638299,0.00071359,111660.0,111650.0,0.73385009]
[1761391644713,0.00071359,111660.0,111650.0,0.68552107]
[1761391645663,0.00071359,111660.0,111650.0,0.30418554]
[1761391645865,0.00071359,111660.0,111650.0,0.68552107]
[1761391652423,0.00071359,111660.0,111650.0,0.30418554]
[1761391652668,0.00071359,111660.0,111650.0,0.68552107]
[1761391660908,0.00071359,111660.0,111650.0,0.64296824]
[1761391711801,0.00071359,111660.0,111650.0,0.98296824]
[1761391712004,0.00071359,111660.0,111650.0,1.03132122]
[1761391712427,0.00071359,111660.0,111650.0,0.98296824]
[1761391720848,0.00071359,111660.0,111650.0,1.02527629]
[1761391727509,0.00071359,111660.0,111650.0,1.07362927]
[1761391730179,0.00071359,111660.0,111650.0,1.10051343]
[1761391743296,0.00071359,111660.0,111650.0,0.71942268]
[1761391743504,0.00071359,111660.0,111650.0,1.10051343]
[1761391747539,0.00071359,111660.0,111650.0,1.06827811]
[1761391750199,0.00071359,111660.0,111650.0,1.10051319]
[1761391772367,0.00071359,111660.0,111650.0,1.06827811]
[1761391775234,0.00071359,111660.0,111650.0,0.68718736]
[1761391775502,0.00071359,111660.0,111650.0,1.06827811]
[1761391782859,0.00071359,111660.0,111650.0,1.02597474]
[1761391803077,0.00071359,111660.0,111650.0,0.68718736]
[1761391803280,0.00071359,111660.0,111650.0,0.34718736]
[1761391803494,0.00071359,111660.0,111650.0,0.35254509]
[1761391803693,0.0276003,111660.0,111650.0,0.30419211]
[1761391803899,0.0276003,111660.0,111650.0,0.64297949]
[1761391804551,0.0276003,111660.0,111650.0,0.64097949]
[1761391804955,0.0276003,111660.0,111650.0,0.64197949]
[1761391805389,0.0276003,111660.0,111650.0,0.64097949]
[1761391808408,0.0276003,111660.0,111650.0,0.30219211]
[1761391808645,0.0276003,111660.0,111650.0,0.64097949]
[1761391818387,0.0276003,111660.0,111650.0,0.69829949]
[1761391818596,0.0276003,111660.0,111650.0,0.64097949]
[1761391824094,0.0276003,111660.0,111650.0,0.30219211]
[1761391824265,0.0276003,111660.0,111650.0,0.64097949]
[1761391838553,0.1844003,111660.0,111650.0,0.64097949]
[1761391842794,0.1844003,111660.0,111650.0,0.68339394]
[1761391843439,0.1844003,111660.0,111650.0,0.65115205]
[1761391852700,0.36351547,111660.0,111650.0,0.09081901]
[1761391852910,0.7447173,111660.0,111650.0,0.001]
[1761391853177,0.7447173,111660.0,111650.0,0.66906517]
[1761391853178,0.0276003,111660.0,111650.0,0.66906517]
[1761391853389,0.1844003,111660.0,111650.0,0.65115205]
[1761391854491,0.1844803,111660.0,111650.0,0.65115205]
[1761391857310,0.0276003,111660.0,111650.0,0.65115205]
[1761391857736,0.1844803,111660.0,111650.0,0.65115205]
[1761391859296,0.0276003,111660.0,111650.0,0.65115205]
[1761391859511,0.1844803,111660.0,111650.0,0.65115205]
[1761391860719,0.0276003,111660.0,111650.0,0.65115205]
[1761391860926,0.1844803,111660.0,111650.0,0.65115205]
[1761391861249,0.0276003,111660.0,111650.0,0.65115205]
[1761391861850,0.1844803,111660.0,111650.0,0.65115205]
[1761391866464,0.15759359,111660.0,111650.0,0.65115205]
[1761391866700,0.15759359,111660.0,111650.0,0.67803874]
[1761391867463,0.00071359,111660.0,111650.0,0.67803874]
[1761391904798,0.00071359,111660.0,111650.0,0.63565861]
[1761391910464,0.00071359,111660.0,111650.0,0.60877192]
[1761391917700,0.15755359,111660.0,111650.0,0.60877192]
[1761391919317,0.15755359,111660.0,111650.0,0.26995022]
[1761391919506,0.15755359,111660.0,111650.0,0.60877192]
[1761391919758,0.15755359,111660.0,111650.0,0.26995022]
[1761391919963,0.15755359,111660.0,111650.0,0.60877192]
[1761391921907,0.69340208,111660.0,111650.0,0.09081901]
[1761391922141,0.6962748,111660.0,111650.0,0.001]
[1761391922359,0.33666876,111660.0,111650.0,0.001]
[1761391922571,0.36356044,111660.0,111650.0,0.001]
[1761391924750,0.17913121,111650.0,111640.0,0.17914703]
[1761391924956,0.17913121,111650.0,111640.0,0.26896604]
[1761391925845,0.17913121,111650.0,111640.0,0.08981901]
[1761391926652,0.17913121,111650.0,111640.0,0.09081901]
[1761391927396,0.17913121,111650.0,111640.0,0.26996626]
[1761391930196,0.17946804,111650.0,111640.0,0.26996626]
[1761391931735,0.00033683,111650.0,111640.0,0.26996626]
[1761391931973,0.00033683,111650.0,111640.0,0.60878796]
[1761391933199,0.17946804,111650.0,111640.0,0.60878796]
[1761391933411,0.00033683,111650.0,111640.0,0.60878796]
[1761391936829,0.05765683,111650.0,111640.0,0.60878796]
[1761391939585,0.00033683,111650.0,111640.0,0.60878796]
[1761391939778,0.15725683,111650.0,111640.0,0.60878796]
[1761391939989,0.00033683,111650.0,111640.0,0.60878796]
[1761391940118,0.15725683,111650.0,111640.0,0.60878796]
[1761391941021,0.00033683,111650.0,111640.0,0.60878796]
[1761391941396,0.15725683,111650.0,111640.0,0.60878796]
[1761391948294,0.15725683,111650.0,111640.0,0.6040541]
[1761391957598,0.14725683,111650.0,111640.0,0.6040541]
[1761391962191,0.17916237,111660.0,111640.0,0.6040541]
[1761391962392,0.15688,111650.0,111640.0,0.6040541]
[1761391963334,0.15688,111650.0,111640.0,0.6030541]
[1761391963769,0.15688,111650.0,111640.0,0.6040541]
[1761391964176,0.15688,111650.0,111640.0,0.6030541]
[1761391964735,0.15688,111650.0,111640.0,0.64648813]
[1761391985184,0.26337405,111660.0,111650.0,0.17913121]
[1761391985384,0.42025405,111660.0,111650.0,0.56038694]
[1761391985763,0.42059083,111660.0,111650.0,0.56038694]
[1761391985941,0.42059083,111660.0,111650.0,0.17913121]
[1761391986131,0.42059083,111660.0,111650.0,0.56038694]
[1761391986331,0.39369915,111660.0,111650.0,0.56038694]
[1761391988900,0.39369915,111660.0,111640.0,0.2642324]
[1761391989108,0.39369915,111660.0,111650.0,0.17913121]
[1761391989513,0.39369195,111660.0,111650.0,0.17913121]
[1761391990255,0.39369195,111660.0,111650.0,0.56038694]
[1761391991326,0.39369195,111660.0,111650.0,0.17913121]
[1761391991553,0.39369195,111660.0,111650.0,0.56038694]
[1761391994844,0.00037678,111660.0,111650.0,0.65020595]
[1761391995052,0.15725678,111660.0,111650.0,0.65020595]
[1761391995297,0.15725678,111660.0,111650.0,0.67709466]
[1761391996390,0.15725678,111660.0,111650.0,0.67809466]
[1761391997139,0.15725678,111660.0,111650.0,0.67709466]
[1761391997355,0.15725678,111660.0,111650.0,0.67809466]
[1761391997886,0.15725678,111660.0,111650.0,0.67709466]
[1761391999114,0.15725678,111660.0,111650.0,0.67809466]
[1761392002963,0.00037678,111660.0,111650.0,0.67809466]
[1761392020169,0.00037678,111660.0,111650.0,1.59241267]
[1761392020418,0.00037678,111660.0,111650.0,1.62465456]
[1761392021327,0.00037678,111660.0,111650.0,1.62365456]
[1761392021535,0.00037678,111660.0,111650.0,1.62465456]
[1761392021886,0.00037678,111660.0,111650.0,1.62365456]
[1761392022092,0.00037678,111660.0,111650.0,1.62565456]
[1761392022502,0.00037678,111660.0,111650.0,1.62665456]
[1761392022717,0.00037678,111660.0,111650.0,1.62565456]
[1761392023068,0.00037678,111660.0,111650.0,1.62765456]
[1761392023475,0.00037678,111660.0,111650.0,1.67600754]
[1761392024324,0.00037678,111660.0,111650.0,1.79600754]
[1761392026786,0.00037678,111660.0,111650.0,1.37214473]
[1761392029926,0.00037678,111660.0,111650.0,1.36814473]
[1761392030145,0.00037678,111660.0,111650.0,1.37214473]
[1761392030347,0.00037678,111660.0,111650.0,1.37414473]
[1761392030562,0.00037678,111660.0,111650.0,1.34190284]
[1761392030760,0.00037678,111660.0,111650.0,1.35190283]
[1761392039303,0.00037678,111660.0,111650.0,1.34190284]
[1761392046413,0.00037678,111660.0,111650.0,1.31501413]
[1761392050262,0.00037678,111660.0,111650.0,1.26666115]
[1761392050484,0.04499231,111700.0,111690.0,0.17906706]
[1761392050685,0.02722813,111700.0,111690.0,0.17906706]
[1761392053433,0.02722813,111700.0,111690.0,0.18006706]
[1761392055919,0.04513975,111700.0,111690.0,0.18006706]
[1761392056123,0.0464863,111700.0,111690.0,0.18006706]
[1761392057859,0.22553732,111700.0,111690.0,0.18006706]
[1761392058080,0.02857468,111700.0,111690.0,0.18006706]
[1761392058289,0.0464863,111700.0,111690.0,0.18006706]
[1761392060485,0.22553732,111700.0,111690.0,0.18006706]
[1761392060705,0.2076257,111700.0,111690.0,0.18006706]
[1761392066072,0.2076257,111700.0,111690.0,0.001]
[1761392076343,0.6278643,111700.0,111690.0,0.001]
[1761392088946,0.67039103,111700.0,111690.0,0.001]
[1761392096427,0.76021004,111700.0,111690.0,0.001]
[1761392096880,1.10021004,111700.0,111690.0,0.001]
[1761392102948,1.01862009,111700.0,111690.0,0.001]
[1761392103155,0.63744471,111700.0,111690.0,0.001]
[1761392103343,1.01862009,111700.0,111690.0,0.001]
[1761392103697,1.14304108,111700.0,111690.0,0.001]
[1761392105835,1.16714858,111700.0,111690.0,0.001]
[1761392106468,1.14026789,111700.0,111690.0,0.001]
[1761392106894,0.54485251,111700.0,111690.0,0.001]
[1761392107095,0.26217251,111700.0,111690.0,0.001]
[1761392107327,0.36177251,111700.0,111690.0,0.38217538]
[1761392107504,0.41909251,111700.0,111690.0,0.001]
[1761392110041,0.36177251,111700.0,111690.0,0.001]
[1761392110242,0.41909251,111700.0,111690.0,0.001]
[1761392110807,0.20485251,111700.0,111690.0,0.001]
[1761392111018,0.41909251,111700.0,111690.0,0.001]
[1761392111200,0.33766501,111700.0,111690.0,0.38217538]
[1761392111397,0.39498501,111700.0,111690.0,0.001]
[1761392116073,0.39498501,111700.0,111690.0,0.18006706]
[1761392119074,0.15861399,111700.0,111690.0,0.56124244]
[1761392119550,0.33766501,111700.0,111690.0,0.56124244]
[1761392120713,0.15861399,111700.0,111690.0,0.56124244]
[1761392120898,0.33766501,111700.0,111690.0,0.56124244]
[1761392121254,0.33766501,111700.0,111690.0,0.18006706]
[1761392121463,0.18074501,111700.0,111690.0,0.18006706]
[1761392121669,0.33766501,111700.0,111690.0,0.18006706]
[1761392121969,0.15861399,111700.0,111690.0,0.18006706]
[1761392123793,0.00169399,111700.0,111690.0,0.65106145]
[1761392124015,0.15861399,111700.0,111690.0,0.65106145]
[1761392128616,0.15861399,111700.0,111690.0,0.26988607]
[1761392128830,0.15861399,111700.0,111690.0,0.65106145]
[1761392129854,0.15861399,111700.0,111690.0,0.26988607]
[1761392130015,0.15861399,111700.0,111690.0,0.65106145]
[1761392137491,0.15861399,111700.0,111690.0,0.26988607]
[1761392137700,0.15861399,111700.0,111690.0,0.65106145]
[1761392148003,0.15861399,111700.0,111690.0,0.65006145]
[1761392148615,0.15861399,111700.0,111690.0,0.65106145]
[1761392149011,0.15861399,111700.0,111690.0,0.65006145]
[1761392149393,0.15861399,111700.0,111690.0,0.65106145]
[1761392150828,0.15861399,111700.0,111690.0,0.60849109]
[1761392151715,0.15861399,111700.0,111690.0,0.26988607]
[1761392157557,0.00169399,111700.0,111690.0,0.26988607]
[1761392161922,0.00169399,111700.0,111690.0,0.60849109]
[1761392166682,0.00169399,111700.0,111690.0,0.26988607]
[1761392169873,0.01960561,111700.0,111690.0,0.26988607]
[1761392171030,0.19865663,111700.0,111690.0,0.18006706]
[1761392171271,0.18074501,111700.0,111690.0,0.18006706]
[1761392174228,0.33762501,111700.0,111690.0,0.18006706]
[1761392183028,0.15857399,111700.0,111690.0,0.18006706]
[1761392194457,0.15857399,111700.0,111690.0,0.60849109]
[1761392194669,0.00169399,111700.0,111690.0,0.60849109]
[1761392194880,0.15853399,111700.0,111690.0,0.60849109]
[1761392197563,0.15853399,111700.0,111690.0,0.26988607]
[1761392202478,0.15853399,111700.0,111690.0,0.60849109]
[1761392203868,0.15853399,111700.0,111690.0,0.26988607]
[1761392204721,0.15853399,111700.0,111690.0,0.60849109]
[1761392206951,0.00169399,111700.0,111690.0,0.60849109]
[1761392209752,0.00169399,111700.0,111690.0,0.26988607]
[1761392210347,0.18074501,111700.0,111690.0,0.26988607]
[1761392210791,0.18074501,111700.0,111690.0,0.65082536]
[1761392221638,0.18074501,111700.0,111690.0,0.09081901]
[1761392222590,0.18074501,111700.0,111690.0,0.4717583]
[1761392223014,0.18074501,111700.0,111690.0,0.09081901]
[1761392224210,0.18074501,111700.0,111690.0,0.4717583]
[1761392224412,0.18074501,111700.0,111690.0,0.09081901]
[1761392224614,0.18074501,111700.0,111690.0,0.4717583]
[1761392232198,0.18074501,111700.0,111690.0,0.65082536]
[1761392234859,0.18074501,111700.0,111690.0,0.4717583]
[1761392240131,0.18074501,111700.0,111690.0,0.09081901]
[1761392243137,0.18074501,111700.0,111690.0,0.001]
[1761392258349,0.5616843,111700.0,111690.0,0.001]
[1761392260539,0.588566,111700.0,111690.0,0.001]
[1761392272881,0.20762671,111700.0,111690.0,0.001]
[1761392273878,0.54634737,111700.0,111690.0,0.001]
[1761392275766,0.60362737,111700.0,111690.0,0.001]
[1761392279383,0.69344638,111700.0,111690.0,0.001]
[1761392282486,1.14744231,111700.0,111690.0,0.001]
[1761392282713,0.17909913,111670.0,111660.0,0.22027433]
[1761392282909,0.33593913,111670.0,111660.0,0.31009334]
[1761392283546,0.36282565,111670.0,111660.0,0.31009334]
[1761392283721,0.36282565,111670.0,111660.0,0.12202382]
[1761392284124,0.36282565,111670.0,111660.0,0.08981901]
[1761392284546,0.36282565,111670.0,111660.0,0.26893418]
[1761392285084,0.36282565,111670.0,111660.0,0.26993418]
[1761392285291,0.36282565,111670.0,111660.0,0.27093418]
[1761392286540,0.33593913,111670.0,111660.0,0.27093418]
[1761392286708,0.33593913,111670.0,111660.0,0.26993418]
[1761392286903,0.33593913,111670.0,111660.0,0.26893418]
[1761392288281,0.33627586,111670.0,111660.0,0.26893418]
[1761392288485,0.33627586,111670.0,111660.0,0.09081901]
[1761392292586,0.33627586,111670.0,111660.0,0.26993418]
[1761392296595,0.33627586,111670.0,111660.0,0.09081901]
[1761392321105,0.33627586,111670.0,111660.0,0.26993418]
[1761392325961,0.33627586,111670.0,111660.0,0.09081901]
[1761392334748,0.33627586,111670.0,111660.0,0.47200568]
[1761392338888,0.33627586,111670.0,111660.0,0.001]
[1761392348987,0.39359586,111670.0,111660.0,0.001]
[1761392350989,0.39359586,111670.0,111660.0,0.38218667]
[1761392351224,0.77478253,111670.0,111660.0,0.001]
[1761392351597,0.39359586,111670.0,111660.0,0.001]
[1761392377866,0.39359586,111670.0,111660.0,0.38218667]
[1761392378569,0.17943586,111670.0,111660.0,0.38218667]
[1761392378782,0.33631586,111670.0,111660.0,0.56130184]
[1761392381886,0.33631586,111670.0,111660.0,0.18011517]
[1761392382090,0.33631586,111670.0,111660.0,0.56130184]
[1761392384791,0.33631586,111670.0,111660.0,0.18011517]
[1761392384999,0.33631586,111670.0,111660.0,0.56130184]
[1761392391790,0.33631586,111670.0,111660.0,0.94248851]
[1761392392003,0.33631586,111670.0,111660.0,0.56130184]
[1761392394869,0.33631586,111670.0,111660.0,0.51888718]
[1761392395068,0.33631586,111670.0,111660.0,0.18011517]
[1761392398571,0.33631586,111670.0,111660.0,0.51888718]
[1761392402875,0.00033673,111670.0,111660.0,0.63559418]
[1761392405985,0.00033673,111670.0,111660.0,0.97559418]
[1761392407019,0.00033673,111670.0,111660.0,1.09459418]
[1761392407221,0.00033673,111670.0,111660.0,1.15291418]
[1761392408478,0.00033673,111670.0,111660.0,1.19009646]
[1761392408876,0.00033673,111670.0,111660.0,1.18909646]
[1761392409081,0.00033673,111670.0,111660.0,1.19009646]
[1761392410025,0.00033673,111670.0,111660.0,1.18909646]
[1761392410339,0.00033673,111670.0,111660.0,1.19009646]
[1761392414606,0.00033673,111670.0,111660.0,1.15391418]
[1761392414818,0.00033673,111670.0,111660.0,0.75659418]
[1761392415022,0.00033673,111670.0,111660.0,0.91347418]
[1761392416486,0.00033673,111670.0,111660.0,0.41782217]
[1761392416699,0.00033673,111670.0,111660.0,0.57474217]
[1761392417612,0.17943586,111670.0,111660.0,0.45474217]
[1761392419199,0.17943586,111670.0,111660.0,0.45374217]
[1761392419634,0.17943586,111670.0,111660.0,0.117707]
[1761392420020,0.17943586,111670.0,111660.0,0.29682217]
[1761392424181,0.17943586,111670.0,111660.0,0.117707]
[1761392424808,0.17943586,111670.0,111660.0,0.29682217]
[1761392425014,0.17943586,111670.0,111660.0,0.117707]
[1761392426408,0.17943586,111670.0,111660.0,0.29682217]
[1761392431056,0.17943586,111670.0,111660.0,0.117707]
[1761392436126,0.17943586,111670.0,111660.0,0.29682217]
[1761392443635,0.19734748,111670.0,111660.0,0.02788799]
[1761392444062,0.19734748,111670.0,111660.0,0.001]
[1761392444518,0.21261218,111670.0,111660.0,0.001]
[1761392444720,0.19470056,111670.0,111660.0,0.001]
[1761392445870,0.20361416,111670.0,111660.0,0.001]
[1761392447267,0.54238617,111670.0,111660.0,0.001]
[1761392448360,0.20361416,111670.0,111660.0,0.001]
[1761392448973,0.54238617,111670.0,111660.0,0.001]
[1761392454058,0.20361416,111670.0,111660.0,0.001]
[1761392454902,0.58491853,111670.0,111660.0,0.001]
[1761392461512,1.01473754,111670.0,111660.0,0.001]
[1761392462372,0.17914725,111640.0,111630.0,0.56942415]
[1761392462584,0.33610725,111640.0,111630.0,0.65924316]
[1761392463857,0.33610725,111640.0,111630.0,0.27793879]
[1761392464079,0.33610725,111640.0,111630.0,0.65924316]
[1761392465244,0.33610725,111640.0,111630.0,0.66024316]
[1761392466804,0.33610725,111640.0,111630.0,0.68713737]
[1761392468169,0.33610725,111640.0,111630.0,0.001]
[1761392470394,0.36678371,111640.0,111630.0,0.001]
[1761392471447,0.33610725,111640.0,111630.0,0.001]
[1761392472182,0.1791633,111630.0,111620.0,0.5872754]
[1761392472336,0.19707492,111630.0,111620.0,0.67724184]
[1761392473537,0.19707492,111630.0,111620.0,0.67824184]
[1761392474615,0.19707492,111630.0,111620.0,0.67924184]
[1761392475732,0.19707492,111630.0,111620.0,0.29793747]
[1761392481808,0.19707492,111630.0,111620.0,0.67924184]
[1761392482369,0.19707492,111630.0,111620.0,0.29793747]
[1761392497330,0.19707492,111630.0,111620.0,0.11886282]
[1761392502767,0.25439492,111630.0,111620.0,0.11886282]
[1761392502949,0.2364833,111630.0,111620.0,0.11886282]
[1761392504542,0.2364833,111630.0,111620.0,0.00214743]
[1761392509263,0.61778767,111630.0,111620.0,0.00214743]
[1761392512989,0.61778767,111630.0,111620.0,0.02904569]
[1761392515318,0.70760668,111630.0,111620.0,0.02904569]
[1761392516790,0.32630231,111630.0,111620.0,0.02904569]
[1761392517856,0.32630231,111630.0,111620.0,0.02704569]
[1761392518059,0.32630231,111630.0,111620.0,0.02804569]
[1761392518583,0.32630231,111630.0,111620.0,0.02704569]
[1761392519923,0.32630231,111630.0,111620.0,0.02804569]
[1761392521786,0.32630231,111630.0,111620.0,0.00114743]
[1761392531649,0.48330231,111630.0,111620.0,0.00114743]
[1761392557079,0.26898231,111630.0,111620.0,0.00114743]
[1761392557275,0.3934433,111630.0,111620.0,0.00114743]
[1761392563393,0.41758383,111630.0,111620.0,0.00114743]
[1761392576213,0.20330383,111630.0,111620.0,0.00114743]
[1761392576436,0.41758383,111630.0,111620.0,0.00114743]
[1761392576833,0.46162397,111630.0,111620.0,0.00114743]
[1761392577303,0.24734397,111630.0,111620.0,0.18032678]
[1761392577508,0.43748344,111630.0,111620.0,0.18032678]
[1761392577917,0.3934433,111630.0,111620.0,0.18032678]
[1761392578348,0.3934433,111630.0,111620.0,0.20722601]
[1761392586380,0.3934433,111630.0,111620.0,0.18032678]
[1761392597409,0.3934433,111630.0,111620.0,0.00114743]
[1761392610051,0.3934433,111630.0,111620.0,5.00114743]